Cogmind - Beta 15 @@@ ROGUE MODE // 2025.08.30 @ 02:27:23 Player: shapeshifter Result: Destroyed by Y-54 Guardian with Flak Gun Performance ------------- Evolutions (0) 0 Regions Visited (3) 600 Robots Destroyed (26) 130 Value Destroyed (781) 781 Prototype IDs (11) 220 Alien Tech Used (0) 0 Bonus (0) 0 TOTAL SCORE: 1731 Bonus ------- None Cogmind --------- Core Integrity 0/250 Matter 271/300 Energy 100/100 System Corruption 0% Temperature Cool (12) Movement Rolling (177) Ox6 Location -7/Recycling Parts ------- > --- POWER (1) -------- Subdweller Power Source > --- PROPULSION (2) --- Compact Wheel Subdweller Monowheel > --- UTILITY (2) ------ Humpback > --- WEAPON (2) ------- Subdweller Beam Cannon Subdweller Machine Gun > --- INVENTORY (35) --- Subdweller Power Source Light Treads Light Treads Spiked Treads Compact Wheel Subdweller Monowheel High-capacity Storage Unit Makeshift Kinetic Plating Makeshift Thermal Plating Tower Shield Makeshift System Shield Medium Laser Beam Cannon Subdweller Beam Cannon Battle Rifle Barrage Gun Makeshift Spear SUBCON Basin (Full) Peak State ------------ > --- POWER ------------ Subdweller Power Source > --- PROPULSION ------- Subdweller Monowheel Subdweller Monowheel > --- UTILITY ---------- Humpback > --- WEAPON ----------- Subdweller Beam Cannon Subdweller Machine Gun > --- INVENTORY -------- Subdweller Power Source Light Treads Light Treads Spiked Treads Compact Wheel Compact Wheel Subdweller Monowheel High-capacity Storage Unit Makeshift Kinetic Plating Tower Shield Medium Laser Beam Cannon Subdweller Beam Cannon Battle Rifle Subdweller Machine Gun Barrage Gun Makeshift Spear SUBCON Basin [Rating: 35] Favorites ----------- Power Subdweller Power Source Engine Subdweller Power Source Propulsion Light Treads Treads Light Treads Wheel Subdweller Monowheel Utility High-capacity Storage Unit Device Seismic Detector Storage High-capacity Storage Unit Protection Makeshift Light Armor Plating Weapon Assault Rifle Energy Gun Medium Laser Energy Cannon Subdweller Beam Cannon Ballistic Gun Assault Rifle Ballistic Cannon Improved Light Cannon Build | -11 -10 -10 -7 ------- Run | Yrd Mat Sub Rec Slots Evolved . | . . . . Power . | . . . . Propulsion . | . . . . Utility . | . . . . Weapon . | . . . . Parts Attached 32 | 7 3 22 . Power 5 | 1 . 4 . Engine 5 | 1 . 4 . Core . | . . . . Reactor . | . . . . Propulsion 9 | 2 . 7 . Treads 5 | 2 . 3 . Leg . | . . . . Wheel 4 | . . 4 . Hover . | . . . . Flight . | . . . . Utility 7 | 2 2 3 . Device 1 | 1 . . . Storage 4 | 1 2 1 . Processor . | . . . . Hackware . | . . . . Protection 2 | . . 2 . Artifact . | . . . . Weapon 11 | 2 1 8 . Energy Gun 1 | 1 . . . Energy Cannon 2 | . . 2 . Ballistic Gun 7 | 1 1 5 . Ballistic Cannon 1 | . . 1 . Launcher . | . . . . Special Weapon . | . . . . Impact Weapon . | . . . . Slashing Weapon . | . . . . Piercing Weapon . | . . . . Special Melee Weapon . | . . . . Unidentified Prototypes . | . . . . Parts Lost 6 | . . 6 . Power . | . . . . Propulsion 2 | . . 2 . Utility . | . . . . Weapon 4 | . . 4 . Highest Loss Streak 2 | . . 2 . To Critical Strikes . | . . . . Average Backups 16 | 3 9 17 17 Power 1 | . 1 2 1 Propulsion 4 | 1 3 4 5 Utility 1 | . . 2 5 Weapon 8 | . 4 8 6 Tool/Special . | . . . . Unused Backups 18 | . 1 9 8 Power 1 | . . 1 . Propulsion 2 | . . 1 1 Utility 6 | . 1 2 3 Weapon 9 | . . 5 4 Tool/Special . | . . . . Average Slot Usage (%) 97 | . 100 97 85 Engine 14 | . 14 14 14 Treads 24 | . 28 23 . Wheel 3 | . . 4 28 Device 3 | . 14 2 . Storage 14 | . 14 14 14 Protection 8 | . . 9 . Energy Gun 1 | . 9 . . Energy Cannon 5 | . . 6 14 Ballistic Gun 18 | . 18 18 14 Ballistic Cannon 2 | . . 2 . Peak Build Rating 35 | 7 10 35 34 Average Rating 16 | 4 8 17 34 On Entrance 12 | . 7 10 34 Naked Turns . | . . . . Heaviest Build 217 | 13 49 217 217 Greatest Support 40 | 40 40 40 36 Greatest Overweight (x) 10 | . 1 10 6 Average Overweight (x) 1 | . . 1 6 Largest Inventory Capacity 35 | 8 20 35 35 Average Capacity 21 | 7 14 22 35 Most Carried 35 | 5 15 35 33 Average Carried 18 | 3 9 20 33 Final Capacity 35 | 8 20 35 35 Final Carried 33 | 4 15 33 33 Class Distribution -------------------- 86% | Mutant 13% | Hauler-Mutant Dominant Class ---------------- Mutant | -10/Materials Mutant | -10/Subcaves Mutant | -7/Recycling Resources | -11 -10 -10 -7 ----------- Run | Yrd Mat Sub Rec Matter Collected 984 | 282 38 664 . Remotely . | . . . . Salvage Created 886 | 27 73 786 . Parts 47 | 1 4 42 . Haulers Intercepted 1 | . 1 . . Recyclers Shooed 1 | 1 . . . Parts Field Recycled . | . . . . Retrieved Matter . | . . . . Parts Self-Destructed 18 | . . 18 . Prevented . | . . . . Kills | -11 -10 -10 -7 ------- Run | Yrd Mat Sub Rec Combat Hostiles Destroyed 20 | . . 20 . Guns 15 | . . 15 . Cannons 4 | . . 4 . Classes Destroyed 8 | 1 2 5 . Tunneler 1 | 1 . . . Hauler 1 | . 1 . . Turret 2 | . . 2 . Watcher 2 | . 2 . . Swarmer 4 | . . 4 . Grunt 3 | . . 3 . Sentry 1 | . . 1 . Subdweller 12 | . . 12 . Best Kill Streak 4 | 1 1 4 . Combat Bots Only 4 | . . 4 . Max Kills in Single Turn 2 | 1 1 2 . Gunslinging . | . . . . Exploded . | . . . . Melee . | . . . . Uniques/NPCs Destroyed . | . . . . Combat | -11 -10 -10 -7 -------- Run | Yrd Mat Sub Rec Hostile Shots Fired 186 | . . 177 9 Missed 63 | . . 58 5 Hits 123 | . . 119 4 Projectile 123 | . . 119 4 Critical Strikes 3 | . . 3 . Damage Taken 1802 | . . 1769 33 Core 254 | . . 248 6 Absorbed by Shields . | . . . . Ignored by Resistances 4 | . . 4 . Core Remaining (%) 100 | 100 . . . Volleys Fired 139 | 4 15 120 . Largest 2 | 2 2 2 . Hottest 110 | 70 70 110 . Shots Fired 215 | 8 30 177 . Gun 159 | 8 30 121 . Cannon 56 | . . 56 . Launcher . | . . . . Special . | . . . . Kinetic 165 | 4 24 137 . Thermal 50 | 4 6 40 . Explosive . | . . . . Electromagnetic . | . . . . Robot Hit Streak 20 | 6 10 20 . Robot Miss Streak 5 | 1 5 4 . Penetration Max . | . . . . Secondary Targets 1 | . . 1 . Max Gunslinging Chain 1 | . . 1 . Shots Hit Robots 125 | 7 17 101 . Core Hits 45 | 2 5 38 . Critical Kills 1 | . . 1 . Critical Parts Destroyed . | . . . . Critical Strikes 5 | 2 1 2 . Burn 3 | 2 1 . . Meltdown 1 | . . 1 . Blast 1 | . . 1 . Melee Attacks . | . . . . Impact . | . . . . Slashing . | . . . . Piercing . | . . . . Sneak Attacks . | . . . . Combat Hostiles . | . . . . Follow-up Attacks . | . . . . Damage Inflicted 2209 | 83 225 1901 . Guns 1769 | 83 225 1461 . Cannons 440 | . . 440 . Explosions . | . . . . Melee . | . . . . Ramming . | . . . . Kinetic 1735 | 46 173 1516 . Thermal 474 | 37 52 385 . Explosive . | . . . . Electromagnetic . | . . . . Impact . | . . . . Slashing . | . . . . Piercing . | . . . . Highest Corruption . | . . . . Average Corruption . | . . . . Corruption Purged . | . . . . Corruption Blocked . | . . . . Overload Shots . | . . . . Overflow Damage . | . . . . Projectiles . | . . . . Explosions . | . . . . Melee . | . . . . Knockbacks 1 | . . 1 . Impact . | . . . . Kinetic 1 | . . 1 . Secondary . | . . . . Self-Inflicted Damage . | . . . . Shots . | . . . . Rammed . | . . . . Targets Rammed . | . . . . Kicked . | . . . . Crushed . | . . . . Highest Temperature 63 | 36 18 63 . Average Temperature 18 | 19 9 20 . Received Heat Transfer 567 | . . 555 12 Siege Activations . | . . . . Martial Activations . | . . . . Shielding Activations . | . . . . Robots Disrupted . | . . . . Combat Hostiles . | . . . . Robots Corrupted . | . . . . Combat Hostiles . | . . . . Parts Fried . | . . . . Impact Corruptions . | . . . . Robots Melted 1 | . . 1 . Combat Hostiles 1 | . . 1 . Parts Melted 3 | . . 3 . Heat Transferred 999 | 259 222 518 . Parts Sabotaged . | . . . . Parts Stolen . | . . . . Parts Stripped . | . . . . Power Chain Reactions . | . . . . Alert | -11 -10 -10 -7 ------- Run | Yrd Mat Sub Rec Maximum Alert Level . | . . . . Low Security (%) 100 | 100 100 . 100 Level 1 . | . . . . Level 2 . | . . . . Level 3 . | . . . . Level 4 . | . . . . Level 5 . | . . . . High Security . | . . . . Max Security . | . . . . Peak Influence 110 | 5 12 . 110 Initial 110 | . . . 110 Average 1 | . . . 110 Influence Increases 342 | 5 37 300 . Destroy 0b10 Robot/C 200 | . . 200 . Destroy 0b10 Robot/NC 20 | 5 15 . . Destroy Leader 16 | . 6 10 . Successful Hack 16 | . 16 . . Lose Combat Pursuer 90 | . . 90 . Influence Decreases 232 | 5 37 70 120 Entered New Map 120 | . . . 120 Time Decay 92 | 5 37 50 . Lost Part 20 | . . 20 . Squads Dispatched . | . . . . Investigation . | . . . . Extermination . | . . . . Reinforcement . | . . . . Assault . | . . . . Garrison . | . . . . Intercept . | . . . . Searches Triggered . | . . . . Construction Impeded . | . . . . Haulers Reinforced . | . . . . Active Scanning Responses . | . . . . Cargo Convoy Interrupts . | . . . . Stealth | -11 -10 -10 -7 --------- Run | Yrd Mat Sub Rec Distress Signals . | . . . . Communications Jammed . | . . . . Distress Signals . | . . . . Times Spotted 31 | . 4 26 1 Peak Tracking Total 4 | . 1 4 1 Tactical Retreats 2 | . . 2 . Traps | -11 -10 -10 -7 ------- Run | Yrd Mat Sub Rec Traps Triggered 1 | . . 1 . Indirectly . | . . . . Trap Hack Attempts . | . . . . Triggered . | . . . . Disarmed . | . . . . Reprogrammed . | . . . . Reused . | . . . . Traps Extracted . | . . . . Installed . | . . . . Triggered . | . . . . Machines | -11 -10 -10 -7 ---------- Run | Yrd Mat Sub Rec Machines Disabled 2 | . . 2 . Max in Single Turn 1 | . . 1 . Machines Repaired . | . . . . Machines Dismantled . | . . . . Machines Sabotaged . | . . . . Overloaded Fab Kills . | . . . . Hacking | -11 -10 -10 -7 --------- Run | Yrd Mat Sub Rec Machines Accessed 8 | . 4 4 . Terminals 4 | . 4 . . Fabricators . | . . . . Repair Stations . | . . . . Recycling Units . | . . . . Scanalyzers . | . . . . Garrison Access . | . . . . Total Hacks 19 | . 11 8 . Successful 12 | . 4 8 . Failed 7 | . 7 . . Catastrophic 1 | . 1 . . Database Lockouts . | . . . . Manual 11 | . 11 . . Terminals 11 | . 11 . . Fabricators . | . . . . Repair Stations . | . . . . Recycling Units . | . . . . Scanalyzers . | . . . . Garrison Access . | . . . . Terminal Hacks 9 | . 1 8 . Record 5 | . . 5 . Open Door 1 | . . 1 . Zone Layout 1 | . 1 . . Proto ID Catalog 1 | . . 1 . Release Object 1 | . . 1 . Fabricator Hacks . | . . . . Repair Station Hacks . | . . . . Recycling Unit Hacks . | . . . . Scanalyzer . | . . . . Garrison Access Hacks . | . . . . Unauthorized Hacks 3 | . 3 . . Terminals 3 | . 3 . . Botnet 3 | . 3 . . Fabricators . | . . . . Repair Stations . | . . . . Recycling Units . | . . . . Scanalyzers . | . . . . Garrison Access . | . . . . Data Cores Recovered . | . . . . Used . | . . . . Hacking Detections 4 | . 4 . . Full Trace Events . | . . . . Feedback Events . | . . . . Feedback Blocked . | . . . . Robot Schematics Acquired . | . . . . Robots Built . | . . . . Authchips . | . . . . Time . | . . . . Total Robot Build Rating . | . . . . Part Schematics Acquired . | . . . . Parts Built . | . . . . Authchips . | . . . . Time . | . . . . Total Part Build Rating . | . . . . Parts Repaired . | . . . . Time . | . . . . Parts Recycled . | . . . . Recycled Matter . | . . . . Retrieved Matter . | . . . . Retrieved Components . | . . . . Parts Scanalyzed . | . . . . Part Schematics Acquired . | . . . . Parts Damaged . | . . . . Bothacking | -11 -10 -10 -7 ------------ Run | Yrd Mat Sub Rec Used RIF Installer . | . . . . Robots Hacked . | . . . . Non-combat . | . . . . Combat . | . . . . Robot Hacks Applied . | . . . . Relay Couplers Released . | . . . . Fabnet Peak Effective % . | . . . . Robots Rewired . | . . . . Allies Hacked . | . . . . Hacks Repelled . | . . . . Allies | -11 -10 -10 -7 -------- Run | Yrd Mat Sub Rec Total Allies . | . . . . Largest Group . | . . . . Highest-Rated Group . | . . . . Highest-Rated Ally . | . . . . Total Orders . | . . . . Ally Attacks . | . . . . Total Damage . | . . . . Kills . | . . . . Allies Corrupted . | . . . . Allies Melted . | . . . . Intel | -11 -10 -10 -7 ------- Run | Yrd Mat Sub Rec Active Infowar (turns) 1878 | 12 773 1093 . Seismic 1878 | 12 773 1093 . Robot Analysis Total . | . . . . Derelict Logs Recovered 2 | . . 2 . Drone Launches . | . . . . Drone Recoveries . | . . . . Exploration | -11 -10 -10 -7 ------------- Run | Yrd Mat Sub Rec Turns Passed 6723 | 96 773 5850 4 Spaces Moved 2784 | 57 378 2347 2 Core 21 | 21 . . . Treads 2317 | 36 378 1903 . Legs . | . . . . Wheels 446 | . . 444 2 Hover . | . . . . Flight . | . . . . Fastest Speed 50 | 50 160 160 177 Average Speed 218 | 119 184 226 177 Slowest Speed 560 | 160 240 560 177 Overloaded Moves . | . . . . Propulsion Burnouts . | . . . . Robots Hopped . | . . . . Potential Cave-ins . | . . . . Cave-ins Triggered . | . . . . Exploration Rate (%) 37 | 4 50 94 2 Regions Visited 3 Branch Regions 2 Pre-discovered Areas 1 | . . 1 . Known Exits Taken . | . . . . Unknown Exits Taken 3 | 1 1 1 . Scrap Searched 7 | . . 7 . Spaces Dug 1 | . . 1 . Terrain Destroyed 6 | . . 6 . Melee . | . . . . Projectile 6 | . . 6 . AOE . | . . . . Terrain Rammed . | . . . . Walls Destroyed . | . . . . Machines Disabled . | . . . . Actions | -11 -10 -10 -7 --------- Run | Yrd Mat Sub Rec Total 3227 | 77 424 2724 2 Wait 173 | . 10 163 . Move 2781 | 56 377 2346 2 Hop . | . . . . Pick Up 70 | 10 15 45 . Fast Attach 1 | 1 . . . Attach 18 | 6 1 11 . Detach . | . . . . Swap 16 | . 2 14 . Drop 29 | . 4 25 . Fire 139 | 4 15 120 . Melee . | . . . . Ram . | . . . . Kick . | . . . . Crush . | . . . . Escape Stasis . | . . . . Rewire . | . . . . Trap . | . . . . Miscellaneous . | . . . . Route ------- -11/Scrapyard -10/Materials (discovered 2 exits: [*Min] / *Sub) -10/Subcaves (discovered 4 exits: [*Mat x2] / [*Rec] / [*Scr]) -7/Recycling History --------- Turn | Location | Event 8 | -11/Scrapyard | Discovered new exit (range 14) 97 | -11/Scrapyard | Entered Materials 172 | -10/Materials | Discovered new exit (range 16) 315 | -10/Materials | Build established: Mutant 858 | -10/Materials | Discovered new exit (range 6) 870 | -10/Materials | Entered Subcaves 871 | -10/Subcaves | Approached by a straggling Scientist 873 | -10/Subcaves | Learned location of Recycling (-7) 896 | -10/Subcaves | Learned Materials security intel 1142 | -10/Subcaves | Curiously followed by a Cobbler waking with a query about "LVR3C" 1225 | -10/Subcaves | Shifting Twisted Machinery released Battle Rifle 1237 | -10/Subcaves | Shifting Twisted Machinery released Sub. Power Source 2185 | -10/Subcaves | Shifting Twisted Machinery released Sub. Power Source 2242 | -10/Subcaves | Scientist uncovered a shortcut to Scraptown 2339 | -10/Subcaves | Ambushed by Subdwellers from Twisted Machinery 2700 | -10/Subcaves | A swath of the cavern ceiling suddenly collapsed 3326 | -10/Subcaves | Discovered new exit (range 10) 4260 | -10/Subcaves | Visited 4L-MR0's lab 4292 | -10/Subcaves | Found Tower Shield 4428 | -10/Subcaves | Core integrity fell below 50% 4536 | -10/Subcaves | A swath of the cavern ceiling suddenly collapsed 5845 | -10/Subcaves | Found SUBCON Basin 6069 | -10/Subcaves | Visited Clippyterm 6074 | -10/Subcaves | Learned Factory stockpile data 6087 | -10/Subcaves | Build established: Hauler-Mutant 6409 | -10/Subcaves | Disturbed a concealed Subdweller 6534 | -10/Subcaves | Discovered new exit (range 8) 6548 | -10/Subcaves | Shifting Twisted Machinery released Sub. Optics 6551 | -10/Subcaves | Shifting Twisted Machinery released Mak. System Shield 6627 | -10/Subcaves | Core integrity fell below 20% 6646 | -10/Subcaves | Discovered new exit (range 12) 6720 | -10/Subcaves | Entered Recycling 6724 | -7/Recycling | Destroyed by Y-54 Guardian with Flak Gun Last Messages --------------- 06603_ Flight Unit fries itself beyond repair. 06605_ Lgt. Ion Engine fries itself beyond repair. 06608_ Flight Unit fries itself beyond repair. 06611_ Lgt. Ion Engine fries itself beyond repair. 06630_ Autobeam Turret destroyed. 06639_ Autobeam fries itself beyond repair. 06646_ Acquired 11 matter. 06646_ EXIT=FOUND 06647_ Machine disabled. 06666_ Sub. Machine Gun destroyed. 06673_ Destroyed Autobeam. 06676_ Autobeam Turret destroyed. 06693_ Acquired 17 matter. 06700_ 25-OFP(O) collects matter. LOCATION=UNKNOWN GOAL=ESCAPE 06724_ Y-54 Guardian springs to life. Map ----- +----------------------------------------------------+ | | | | | | | | | | | | | ?????????????????????????????????????????????????? | | ?????????????????????????????????????????????????? | | ?????????????????????????????????????????????????? | | ?????????????????????????????????????????????????? | | ?????????????????????????????????????????????????? | | ?????????????????????????????????????????????????? | | ?????????????????????????????????????????????????? | | ?????????????????????????????????????????????????? | | ?????????????????????????????????????????????????? | | ?????????????????????????????????????????????????? | | ?????????????????????????????????????????????????? | | ?????????????????????????????????????????????????? | | ?????????????????????????????????????????????????? | | ?????????????????????????????????????????????????? | | ?????????????????????????????????????????????????? | | ?????????????????????????????????????????????????? | | ?????????????????????????????????????????????????? | | ???????????????????????##????????????????????????? | | ??????????????# "#######Y#####???????????????????? | | ?????????? @ #???????????????????? | | ?????????? #???????????????????? | | ?????????? #???????????????????? | | ??????????? #####"T###########???????????????????? | | ????????????????#????????????????????????????????? | | ?????????????????????????????????????????????????? | | ?????????????????????????????????????????????????? | | ?????????????????????????????????????????????????? | | ?????????????????????????????????????????????????? | | ?????????????????????????????????????????????????? | | ?????????????????????????????????????????????????? | | ?????????????????????????????????????????????????? | | ?????????????????????????????????????????????????? | | ?????????????????????????????????????????????????? | | ?????????????????????????????????????????????????? | | ?????????????????????????????????????????????????? | | ?????????????????????????????????????????????????? | | ?????????????????????????????????????????????????? | | ?????????????????????????????????????????????????? | | ?????????????????????????????????????????????????? | | ?????????????????????????????????????????????????? | | ?????????????????????????????????????????????????? | | ?????????????????????????????????????????????????? | | ?????????????????????????????????????????????????? | | ?????????????????????????????????????????????????? | +----------------------------------------------------+ Best States ------------- Heat Dissipation 25 Energy Generation 15 Energy Capacity 250 Matter Stores 300 Matter Capacity 300 Sight Range 16 Terrain Scan Density 10 Armor Coverage 100 Resistance: KI 10 Evasion (%) 50 Recoil Reduction 2 Item Schematics ----------------- None Robot Schematics ------------------ None Fabricated ------------ Nothing Repaired ---------- Nothing Alien Tech Used ----------------- None Achievements -------------- None Challenges ------------ None Game ------ Seed CarbideGaussAutocannon Manual? 0 Play Time 00:17:30 Cumulative 229.8 hours Start 2025.08.30 @ 02:09:23 End 2025.08.30 @ 02:27:23 Sessions 1 Manual Loads 0 Difficulty Rogue Special Mode None Game No. 336 Rogue 336 Adventurer 0 Explorer 0 Win Type - Total 4 Types 3/0/1/0/0/0/0/0/0/0 Lore% 81 Gallery% 76 Achievement% 58 Wizard Run 0 Options --------- Layout 1 ASCII 0 Keyboard 0 Movement Mouse Keybinds 0 Fullscreen 1 Font 32/SmallcapsGlow Map View 50x35 Zoom Use 0% Tactical HUD 1 Map Filters NONE Filters NONE Steam 1 RUN: 5896c2d2-6b91-4aeb-af9a-3215b4ccf091